bitfinex/quotes_SOLUSD_20260108
["timestamp","ask_amount","ask_price","bid_price","bid_amount"]
[1767885447178,5.49907011,135.27,135.22,19.66492953]
[1767885447402,5.49907011,135.25,135.22,13.5]
[1767885447599,0.71305255,135.27,135.22,14.16585942]
[1767885447781,0.71305255,135.29,135.23,5.49907011]
[1767885447974,26.75012927,135.31,135.22,14.16585942]
[1767885447975,5.49907011,135.27,135.22,14.16585942]
[1767885448277,5.49907011,135.26,135.22,13.5]
[1767885448579,8.10556289,135.28,135.22,14.16585942]
[1767885448787,5.49907011,135.27,135.22,19.66492953]
[1767885448985,5.49907011,135.26,135.22,14.16585942]
[1767885449399,5.49907011,135.25,135.22,13.5]
[1767885449601,5.49907011,135.24,135.21,13.5]
[1767885450821,5.49907011,135.27,135.22,0.66585942]
[1767885451112,6.21212266,135.28,135.24,5.49907011]
[1767885451317,7.39185421,135.29,135.25,6.16492953]
[1767885451318,5.49907011,135.29,135.25,6.16492953]
[1767885451613,5.49907011,135.28,135.25,13.5]
[1767885451774,5.49907011,135.27,135.25,13.5]
[1767885451974,0.71305255,135.25,135.2,13.5]
[1767885452287,0.71305255,135.25,135.19,6.16492953]
[1767885452288,5.49907011,135.23,135.19,6.16492953]
[1767885452579,8.10697489,135.25,135.2,6.21356255]
[1767885452786,13.606045,135.25,135.2,6.21356255]
[1767885452996,5.49907011,135.24,135.19,18.99907011]
[1767885453180,5.49907011,135.24,135.19,19.71356255]
[1767885453584,8.10697489,135.25,135.19,19.71356255]
[1767885453795,5.49907011,135.24,135.19,19.71356255]
[1767885454299,5.49907011,135.24,135.2,5.49907011]
[1767885454896,12.89338686,135.24,135.2,5.49907011]
[1767885455111,13.60596373,135.25,135.2,6.21356255]
[1767885455978,5.49907011,135.24,135.2,0.71449244]
[1767885456182,5.49907011,135.23,135.19,13.5]
[1767885456382,5.49907011,135.2,135.17,0.2]
[1767885456609,12.89565136,135.2,135.17,0.2]
[1767885457181,5.49907011,135.19,135.17,0.2]
[1767885457404,25.88770551,135.2,135.12,0.2]
[1767885457405,0.68543052,135.17,135.12,0.2]
[1767885457608,5.49907011,135.14,135.12,0.2]
[1767885457780,5.46907012,135.14,135.12,0.2]
[1767885458708,0.46907012,135.14,135.12,0.2]
[1767885459006,5.49907011,135.13,135.11,13.5]
[1767885459206,0.68543052,135.14,135.08,0.71449244]
[1767885459207,5.49907011,135.12,135.09,13.5]
[1767885459501,5.49907011,135.13,135.09,14.21449244]
[1767885460008,5.49907011,135.13,135.09,13.5]
[1767885460203,5.49907011,135.12,135.09,13.5]
[1767885460790,5.49907011,135.11,135.09,13.5]
[1767885461209,0.68543052,135.12,135.09,13.5]
[1767885461408,5.49907011,135.14,135.09,19.71356255]
[1767885461599,0.68543052,135.16,135.09,19.71356255]
[1767885461992,5.49907011,135.14,135.09,19.71356255]
[1767885462190,5.49907011,135.13,135.09,14.21449244]
[1767885462412,5.49907011,135.12,135.09,13.5]
[1767885462715,12.90125488,135.1,135.07,13.5]
[1767885463018,7.40218477,135.1,135.07,13.5]
[1767885463213,12.90125488,135.1,135.07,13.5]
[1767885463521,0.68543052,135.13,135.07,27.11702539]
[1767885463711,5.49907011,135.13,135.09,6.21356255]
[1767885463905,5.49907011,135.14,135.1,13.5]
[1767885464091,5.49907011,135.14,135.1,18.99907011]
[1767885464291,5.49907011,135.13,135.1,13.5]
[1767885464513,5.49907011,135.15,135.11,0.71449244]
[1767885464809,5.49907011,135.15,135.11,19.71356255]
[1767885465017,12.89837674,135.15,135.11,19.71356255]
[1767885465381,6.38267005,135.16,135.11,14.21449244]
[1767885465584,0.88359994,135.18,135.15,5.49907011]
[1767885465800,0.88359994,135.18,135.15,18.99907011]
[1767885466216,6.18450063,135.19,135.15,13.5]
[1767885466415,5.49907011,135.17,135.15,13.5]
[1767885466717,0.88359994,135.17,135.14,5.49907011]
[1767885466888,13.58097582,135.2,135.15,5.49907011]
[1767885467092,0.88359994,135.19,135.15,18.99907011]
[1767885467587,6.38267005,135.19,135.15,13.5]
[1767885467909,6.38267005,135.19,135.15,18.99907011]
[1767885468118,6.38267005,135.19,135.15,118.99907011]
[1767885468594,0.88359994,135.19,135.15,118.99907011]
[1767885468797,7.3997336,135.14,135.03,0.71449244]
[1767885468995,5.49907011,135.04,135.0,3.85082503]
[1767885469310,5.49907011,135.01,134.97,0.2]
[1767885469609,6.18450063,135.09,135.01,0.71449244]
[1767885469812,0.68543052,135.11,135.04,0.71449244]
[1767885470017,5.49907011,135.08,135.04,0.71449244]
[1767885470393,5.49907011,135.08,135.05,13.5]
[1767885470601,16.37281994,135.08,135.05,13.5]
[1767885470906,34.88037102,135.08,135.06,13.5]
[1767885471106,16.37281994,135.08,135.06,13.5]
[1767885471602,16.37281994,135.08,135.0,1.45523318]
[1767885471603,9.6548782,135.07,135.0,1.45523318]
[1767885471805,8.96944768,135.05,135.01,13.5]
[1767885472113,8.96944768,135.04,134.99,8.96944768]
[1767885472316,0.68543052,135.05,134.98,0.71449244]
[1767885472317,8.96944768,135.03,134.98,0.71449244]
[1767885472504,71.89547318,135.08,134.99,13.5]
[1767885472505,8.96944768,135.01,134.99,13.5]
[1767885472898,8.96944768,135.01,134.97,0.2]
[1767885473116,8.96944768,135.01,134.98,13.5]
[1767885473293,8.96944768,135.01,134.97,0.2]
[1767885473600,0.68543052,135.04,134.97,0.2]
[1767885473806,8.96944768,135.03,134.98,22.46944768]
[1767885474006,0.68543052,135.04,134.98,14.21449244]
[1767885474222,0.68543052,135.04,134.99,8.96944768]
[1767885474418,8.96944768,135.06,135.02,9.68394012]
[1767885474610,16.37386385,135.06,135.03,13.5]
[1767885474920,16.37386385,135.06,135.04,13.5]
[1767885475308,7.40372291,135.07,135.04,13.5]
[1767885475520,7.40320366,135.08,135.05,13.52]
[1767885475723,7.40320366,135.08,135.04,8.96944768]
[1767885475898,16.37265134,135.08,135.06,13.52]
[1767885476220,16.37265134,135.08,135.07,13.52]
[1767885476722,7.40320366,135.08,135.07,13.52]
[1767885476906,7.40320366,135.08,135.05,8.96944768]
[1767885477109,7.40320366,135.08,135.06,13.52]
[1767885477711,7.40320366,135.08,135.05,8.96944768]
[1767885477916,7.40320366,135.08,135.06,13.52]
[1767885478121,8.28627543,135.09,135.05,8.96944768]
[1767885478293,8.28627543,135.09,135.07,13.52]
[1767885478500,17.94115363,135.09,135.05,8.96944768]
[1767885478817,17.94115363,135.09,135.08,13.52]
[1767885478818,0.88359994,135.09,135.08,13.52]
[1767885479002,8.28505427,135.11,135.08,13.52]
[1767885479323,17.25450195,135.11,135.09,13.52]
[1767885479721,17.25450195,135.11,135.09,13.46]
[1767885480021,8.28505427,135.11,135.09,13.46]
[1767885480230,18.50001183,135.14,135.1,8.96944768]
[1767885480396,7.4004863,135.13,135.11,13.52]
[1767885480602,0.15859994,135.13,135.11,22.48944768]
[1767885480816,0.84403046,135.13,135.09,8.96944768]
[1767885481036,9.6548782,135.1,135.06,8.96944768]
[1767885481221,0.15859994,135.09,135.07,13.52]
[1767885481430,0.15859994,135.09,135.07,8.96944768]
[1767885481599,0.84403046,135.1,135.08,13.52]
[1767885481806,0.84403046,135.1,135.03,7.92515877]
[1767885482006,8.24634658,135.1,135.06,8.96944768]
[1767885482410,8.96944768,135.09,135.06,13.52]
[1767885482731,0.15859994,135.08,135.06,13.52]
[1767885483106,0.15859994,135.08,135.05,13.52]
[1767885483514,7.56162122,135.08,135.04,8.96944768]
[1767885483713,7.56162122,135.08,135.04,22.48944768]
[1767885483923,0.15859994,135.08,135.05,8.96944768]
[1767885484130,0.15859994,135.08,135.04,13.52]
[1767885484131,0.15859994,135.08,135.06,8.96944768]
[1767885484330,0.15859994,135.08,135.05,8.96944768]
[1767885484531,7.56126398,135.09,135.06,22.48944768]
[1767885484832,7.40266404,135.09,135.06,13.52]
[1767885485034,0.15859994,135.09,135.07,8.96944768]
[1767885485332,0.68410845,135.15,135.08,9.48886896]
[1767885485514,36.99308246,135.17,135.04,0.28432314]
[1767885485515,17.0535038,135.14,135.04,0.28432314]
[1767885485832,35.55283782,135.14,135.09,8.96944768]
[1767885486006,8.08405612,135.14,135.1,8.96944768]
[1767885486824,8.08405612,135.14,135.1,22.48944768]
[1767885487023,17.0535038,135.14,135.1,22.48944768]
[1767885487218,7.39994767,135.14,135.11,8.96944768]
[1767885487404,0.68410845,135.13,135.11,22.48944768]
[1767885488510,18.49856831,135.15,135.12,8.96944768]
[1767885488511,0.68410845,135.15,135.12,8.96944768]
[1767885488842,7.39827507,135.17,135.14,8.96944768]
[1767885489214,7.39766296,135.18,135.13,13.52]
[1767885489411,27.46227745,135.19,135.15,8.96944768]
[1767885489412,7.39723491,135.19,135.15,8.96944768]
[1767885489622,16.36668259,135.19,135.15,8.96944768]
[1767885489823,17.05079104,135.19,135.16,13.52]
[1767885490321,9.65355613,135.18,135.14,8.96944768]
[1767885490632,9.65355613,135.18,135.15,13.52]
[1767885491723,8.08214019,135.18,135.15,13.52]
[1767885491909,8.08214019,135.18,135.15,22.48944768]
[1767885492107,8.08214019,135.18,135.15,13.52]
[1767885492312,17.05158787,135.18,135.15,13.52]
[1767885493133,17.05158787,135.18,135.13,8.96944768]
[1767885493314,17.05158787,135.18,135.16,13.52]
[1767885493512,8.08214019,135.18,135.16,13.52]
[1767885493717,17.05158787,135.18,135.13,8.96944768]
[1767885493917,9.65355613,135.17,135.14,13.52]
[1767885494436,0.68410845,135.17,135.14,13.52]
[1767885494737,0.68410845,135.19,135.14,13.52]
[1767885494920,0.68410845,135.18,135.14,13.52]
[1767885495418,9.65355613,135.18,135.14,22.48944768]
[1767885495741,17.04945879,135.21,135.16,8.96944768]
[1767885495920,0.68410845,135.21,135.17,13.5]
[1767885496239,17.04850807,135.23,135.18,8.96944768]
[1767885496736,9.65355613,135.22,135.18,8.96944768]
[1767885496936,9.65355613,135.22,135.17,22.46944768]
[1767885497513,9.65355613,135.2,135.13,0.36082134]
[1767885497737,0.28432314,135.22,135.14,13.5]
[1767885497738,9.65355613,135.18,135.14,13.5]
[1767885497916,9.65355613,135.18,135.14,22.46944768]
[1767885498322,9.65355613,135.15,135.09,0.36082134]
[1767885498519,9.65355613,135.13,135.1,13.5]
[1767885498726,8.96944768,135.11,135.07,8.96944768]
[1767885498922,0.68410845,135.13,135.07,8.96944768]
[1767885499224,8.96944768,135.12,135.08,8.96944768]
[1767885499529,0.68410845,135.13,135.09,8.96944768]
[1767885499718,0.68410845,135.13,135.07,20.90306512]
[1767885499918,0.68410845,135.13,135.07,20.90325041]
[1767885499919,0.68410845,135.12,135.07,20.90325041]
[1767885500125,8.96944768,135.13,135.09,8.96944768]
[1767885500324,17.05348117,135.14,135.1,13.5]
[1767885500618,18.49770517,135.16,135.12,8.96944768]
[1767885500619,0.68410845,135.16,135.12,8.96944768]
[1767885500823,0.68410845,135.16,135.1,13.5]
[1767885500824,0.68410845,135.18,135.14,8.96944768]
[1767885501223,0.68410845,135.18,135.13,13.5]
[1767885501224,0.68410845,135.18,135.15,22.46944768]
[1767885501451,0.68410845,135.18,135.16,13.5]
[1767885501653,0.68410845,135.16,135.13,13.5]
[1767885501946,17.05274221,135.15,135.13,12.775]
[1767885502256,17.05274221,135.15,135.11,8.96944768]
[1767885502257,17.05274221,135.15,135.12,13.5]
[1767885503142,0.68410845,135.14,135.12,13.5]
[1767885503520,17.05230781,135.16,135.12,13.5]
[1767885503840,0.68410845,135.16,135.13,8.96944768]
[1767885504142,0.14216157,135.2,135.15,8.96944768]
[1767885504143,7.39719963,135.19,135.15,8.96944768]
[1767885504322,8.08130808,135.19,135.15,8.96944768]
[1767885504522,8.08130808,135.19,135.16,13.5]
[1767885504745,17.05075576,135.19,135.16,13.5]
[1767885505045,9.65355613,135.18,135.16,13.5]
[1767885505740,0.68410845,135.18,135.16,13.5]
[1767885505941,7.5819261,135.18,135.16,13.5]
[1767885506137,8.96944768,135.19,135.16,22.46944768]
[1767885506138,7.39717913,135.19,135.16,22.46944768]
[1767885506521,7.39717913,135.19,135.16,13.5]
[1767885506931,7.39717913,135.19,135.16,22.46944768]
[1767885507429,8.96944768,135.21,135.14,0.70205863]
[1767885507632,67.80104937,135.27,135.14,0.70205863]
[1767885507633,8.96944768,135.2,135.15,13.5]
[1767885507837,8.96944768,135.2,135.15,8.96944768]
[1767885508040,9.65355613,135.19,135.16,13.5]
[1767885508739,9.65355613,135.19,135.15,8.96944768]
[1767885509052,0.68410845,135.19,135.17,13.5]
[1767885509430,0.68410845,135.19,135.15,8.96944768]
[1767885509431,0.68410845,135.19,135.15,13.5]
[1767885509643,8.96944768,135.18,135.15,13.5]
[1767885509847,8.96944768,135.19,135.15,13.5]
[1767885510158,17.05102704,135.19,135.15,13.5]
[1767885510340,17.05102704,135.19,135.13,0.70205863]
[1767885510546,7.39666814,135.2,135.16,9.67150631]
[1767885510856,9.65355613,135.19,135.14,13.5]
[1767885511077,9.65355613,135.19,135.15,8.96944768]
[1767885511234,9.65355613,135.19,135.14,22.46944768]
[1767885511426,9.65355613,135.18,135.14,13.5]
[1767885511629,0.68410845,135.18,135.14,22.46944768]
[1767885512134,8.0859195,135.17,135.13,8.96944768]
[1767885512334,8.0859195,135.17,135.13,22.46944768]
[1767885512637,8.0859195,135.17,135.13,13.5]
[1767885512638,17.05536718,135.17,135.13,13.5]
[1767885512844,8.0859195,135.17,135.13,22.46944768]
[1767885513036,0.68782821,135.15,135.1,8.96944768]
[1767885513239,9.65727589,135.15,135.11,22.46944768]
[1767885513442,7.39809129,135.17,135.12,0.65407935]
[1767885513646,7.39774508,135.18,135.14,8.96944768]
[1767885514529,17.05502097,135.18,135.14,8.96944768]
[1767885514728,9.65727589,135.16,135.11,23.12352703]
[1767885514963,9.65727589,135.16,135.11,22.46944768]
[1767885515459,0.68782821,135.16,135.12,8.96944768]
[1767885515633,35.548881,135.18,135.12,0.65407935]
[1767885516034,35.548881,135.18,135.14,8.96944768]
[1767885516257,26.57943332,135.18,135.14,8.96944768]
[1767885516460,35.548881,135.18,135.14,8.96944768]
[1767885516779,0.68782821,135.17,135.14,8.96944768]
[1767885517053,0.68782821,135.15,135.13,13.5]
[1767885517231,0.68782821,135.15,135.11,13.5]
[1767885517756,0.68782821,135.13,135.1,13.5]
[1767885517964,0.68782821,135.12,135.1,13.5]
[1767885518132,9.65727589,135.14,135.1,13.5]
[1767885518333,16.36753897,135.17,135.13,8.96944768]
[1767885518537,8.0859195,135.17,135.13,8.96944768]
[1767885519650,17.05536718,135.17,135.13,8.96944768]
[1767885520350,8.0859195,135.17,135.12,14.15407935]
[1767885520556,17.05536718,135.17,135.13,8.96944768]
[1767885521139,17.05536718,135.17,135.12,14.15407935]
[1767885521359,8.0859195,135.17,135.13,8.96944768]
[1767885521967,8.0859195,135.17,135.13,22.46944768]
[1767885522337,8.96944768,135.19,135.15,9.62352703]
[1767885522535,18.49197644,135.2,135.16,8.96944768]
[1767885523044,7.39717752,135.19,135.15,14.15407935]
[1767885523266,7.39717752,135.19,135.15,23.12352703]
[1767885523986,7.39717752,135.19,135.15,13.5]
[1767885523987,8.08500573,135.19,135.15,13.5]
[1767885524142,17.05445341,135.19,135.15,22.46944768]
[1767885524470,16.3666252,135.19,135.15,14.15407935]
[1767885524768,7.39717752,135.19,135.17,8.96944768]
[1767885525074,7.39717752,135.19,135.15,14.15407935]
[1767885525372,50.47317813,135.24,135.18,9.62352703]
[1767885525373,0.68782821,135.24,135.18,9.62352703]
[1767885525586,5.80159626,135.23,135.19,8.96944768]
[1767885525741,9.65727589,135.23,135.19,8.96944768]
[1767885526377,8.0827431,135.23,135.19,8.96944768]
[1767885526539,8.0827431,135.23,135.2,8.96944768]
[1767885526740,8.0827431,135.23,135.19,8.96944768]
[1767885526954,0.68782821,135.22,135.18,13.5]
[1767885527165,0.68782821,135.22,135.18,22.46944768]
[1767885527367,9.65727589,135.22,135.18,13.5]
[1767885527554,0.68782821,135.2,135.14,0.65407935]
[1767885527747,9.65727589,135.2,135.14,0.65407935]
[1767885527950,0.68782821,135.2,135.16,8.96944768]
[1767885528150,8.0846664,135.2,135.16,8.96944768]
[1767885528443,8.0846664,135.2,135.17,8.96944768]
[1767885528642,7.39558873,135.22,135.18,0.65407935]
[1767885528842,7.39558873,135.22,135.19,8.96944768]
[1767885529043,7.39501437,135.23,135.2,8.96944768]
[1767885529267,7.39501437,135.23,135.21,8.96944768]
[1767885529566,7.39501437,135.23,135.19,0.65407935]
[1767885529877,0.68782821,135.22,135.19,8.96944768]
[1767885530375,8.08325698,135.22,135.19,8.96944768]
[1767885530563,8.08325698,135.22,135.2,5.50755734]
[1767885530762,0.68782821,135.24,135.21,5.50755734]
[1767885530980,43.64067716,135.28,135.24,0.65407935]
[1767885530981,7.39207569,135.28,135.24,0.65407935]
[1767885531278,5.11682971,135.27,135.23,13.5]
[1767885531454,0.68782821,135.25,135.23,13.5]
[1767885531662,0.68782821,135.25,135.22,19.00755734]
[1767885532061,6.19538555,135.27,135.23,5.50755734]
[1767885532255,8.08069012,135.27,135.24,5.50755734]
[1767885532580,7.39226379,135.28,135.25,5.50755734]
[1767885533863,8.080092,135.28,135.24,19.00755734]
[1767885534072,0.68782821,135.26,135.23,13.5]
[1767885534267,7.39371534,135.25,135.23,13.5]
[1767885534780,24.67832712,135.26,135.23,19.00755734]
[1767885534781,7.39329712,135.26,135.23,19.00755734]
[1767885534984,7.39329712,135.26,135.23,13.5]
[1767885535282,0.68782821,135.25,135.2,19.00755734]
[1767885535465,0.68782821,135.25,135.21,5.50755734]
[1767885535672,6.19538555,135.25,135.21,5.50755734]
[1767885536366,12.90181939,135.24,135.2,5.50755734]
[1767885536567,12.90181939,135.24,135.19,14.15407935]
[1767885536769,6.19538555,135.22,135.17,13.5]
[1767885537081,5.50755734,135.19,135.14,0.65407935]
[1767885537270,0.68782821,135.18,135.13,5.50755734]
[1767885537461,6.19538555,135.18,135.14,5.50755734]
[1767885537990,6.19538555,135.18,135.13,19.66163669]
[1767885538158,6.19538555,135.18,135.14,5.50755734]
[1767885538680,7.39809129,135.17,135.13,19.66163669]
[1767885538856,12.90564863,135.17,135.13,14.15407935]
[1767885539060,12.90564863,135.17,135.13,0.65407935]
[1767885539484,12.90564863,135.17,135.13,6.16163669]
[1767885539678,7.39809129,135.17,135.13,6.16163669]
[1767885540185,7.39809129,135.17,135.14,6.16163669]
[1767885540364,7.39749657,135.19,135.15,5.50755734]
[1767885540691,7.39590266,135.21,135.17,6.16163669]
[1767885540988,12.90346,135.21,135.17,0.65407935]
[1767885541160,5.50755734,135.19,135.15,14.15407935]
[1767885541366,5.50755734,135.19,135.15,19.66163669]
[1767885542684,5.50755734,135.19,135.13,6.22149458]
[1767885542685,5.50755734,135.17,135.13,6.22149458]
[1767885543392,5.50755734,135.18,135.15,0.71393724]
[1767885543691,31.39756738,135.19,135.15,6.22149458]
[1767885544187,50.88409154,135.25,135.19,0.71393724]
[1767885544188,7.39426205,135.24,135.19,0.71393724]
[1767885544388,10.9328714,135.27,135.15,20.89903767]
[1767885544389,7.39262216,135.27,135.23,6.22149458]
[1767885544686,24.66042435,135.27,135.22,5.50755734]
[1767885545168,0.67131161,135.26,135.21,14.21393724]
[1767885545364,0.67131161,135.26,135.22,5.50755734]
[1767885545584,6.17886895,135.26,135.21,19.00755734]
[1767885545802,0.67131161,135.26,135.21,19.00755734]
[1767885546088,5.50755734,135.25,135.21,19.00755734]
[1767885548696,0.67131161,135.23,135.19,13.5]
[1767885548896,0.67131161,135.23,135.19,19.00755734]
[1767885549065,0.67131161,135.23,135.2,5.50755734]
[1767885549481,32.05741349,135.25,135.2,5.50755734]
[1767885549673,0.67131161,135.24,135.2,5.50755734]
[1767885549875,0.67131161,135.24,135.19,13.5]
[1767885550075,6.17886895,135.24,135.2,5.50755734]
[1767885550276,0.67131161,135.24,135.19,13.5]
[1767885550476,6.17886895,135.24,135.2,5.50755734]
[1767885550896,7.39480884,135.23,135.2,5.50755734]
[1767885551363,7.39480884,135.23,135.19,13.5]
[1767885551568,13.57104129,135.23,135.18,6.22149458]
[1767885551763,13.57104129,135.23,135.18,14.21393724]
[1767885552075,5.50755734,135.21,135.16,6.17993935]
[1767885552391,26.55050606,135.23,135.18,6.17993935]
[1767885552591,6.17623245,135.22,135.17,5.50755734]
[1767885552794,7.39699681,135.19,135.16,0.67238201]
[1767885553091,13.57322926,135.19,135.15,13.5]
[1767885553290,6.17623245,135.18,135.15,13.5]
[1767885553491,7.39699681,135.19,135.15,13.5]
[1767885553492,26.55816396,135.19,135.15,13.5]
[1767885553875,32.0657213,135.19,135.15,13.5]
[1767885554376,5.50755734,135.18,135.15,13.5]
[1767885554792,6.17623245,135.18,135.15,13.5]
[1767885554990,12.90564863,135.17,135.13,0.67238201]
[1767885555479,5.50755734,135.16,135.13,0.67238201]
[1767885555684,12.90564863,135.17,135.13,0.67238201]
[1767885556392,32.06955197,135.17,135.12,5.50755734]
[1767885556595,7.39809129,135.17,135.13,6.17993935]
[1767885556978,7.39754401,135.18,135.14,6.17993935]
[1767885557704,5.50755734,135.17,135.12,6.17993935]
[1767885558073,32.06763649,135.18,135.13,0.67238201]
[1767885558297,0.66867511,135.17,135.1,0.67238201]
[1767885558493,6.17623245,135.17,135.12,6.17993935]
[1767885558908,12.90674342,135.15,135.11,5.50755734]
[1767885559085,12.90674342,135.15,135.1,6.17993935]
[1767885559283,31.40470864,135.15,135.1,6.17993935]
[1767885559485,26.56582641,135.15,135.1,6.17993935]
[1767885559706,5.50755734,135.14,135.1,6.17993935]
[1767885560302,26.56582641,135.15,135.1,0.67238201]
[1767885560502,0.66867511,135.12,135.07,6.17993935]
[1767885560709,25.8971513,135.15,135.11,6.17993935]
[1767885560890,31.40470864,135.15,135.11,6.17993935]
[1767885561101,31.40470864,135.15,135.04,13.5]
[1767885561102,6.17623245,135.14,135.08,0.67238201]
[1767885561285,6.17623245,135.14,135.09,6.17993935]
[1767885561486,0.66867511,135.14,135.09,0.67238201]
[1767885561698,0.66867511,135.14,135.1,5.50755734]
[1767885562105,0.66867511,135.14,135.08,0.67238201]
[1767885562403,0.66867511,135.14,135.1,5.50755734]
[1767885563185,7.40028121,135.13,135.09,0.67238201]
[1767885563384,7.40028121,135.13,135.1,5.50755734]
[1767885564507,7.39971443,135.15,135.11,6.17993935]
[1767885564678,12.90727177,135.15,135.11,6.17993935]
[1767885564885,13.57594688,135.15,135.1,5.50755734]
[1767885565280,13.57594688,135.15,135.11,5.50755734]
[1767885565594,13.57594688,135.15,135.1,0.67238201]
[1767885565790,32.0739121,135.15,135.1,0.67238201]
[1767885565994,32.0739121,135.15,135.1,6.17993935]
[1767885566598,32.0739121,135.15,135.1,0.67238201]
[1767885566799,32.0739121,135.15,135.1,6.17993935]
[1767885568690,5.50755734,135.14,135.1,6.17993935]
[1767885569116,32.0739121,135.15,135.1,6.17993935]
[1767885569317,7.39971443,135.15,135.12,0.67238201]
[1767885569608,39.39031976,135.19,135.15,0.67238201]
[1767885569818,7.39590266,135.21,135.18,5.50755734]
[1767885570022,7.39590266,135.21,135.19,5.50755734]
[1767885570221,7.39590266,135.21,135.18,0.67238201]
[1767885570386,32.06189178,135.21,135.16,6.17993935]
[1767885570583,7.39590266,135.21,135.18,0.67238201]
[1767885570796,7.39590266,135.21,135.19,5.50755734]
[1767885571002,7.39590266,135.21,135.18,6.17993935]
[1767885571286,25.88565933,135.21,135.18,0.67238201]
[1767885572110,31.39321667,135.21,135.14,0.67238201]
[1767885572328,5.50755734,135.19,135.15,6.17928136]
[1767885572800,5.50755734,135.2,135.16,5.50755734]
[1767885573008,6.21782245,135.19,135.14,5.50755734]
[1767885573506,6.21782245,135.19,135.15,5.50755734]
[1767885574185,4.963761,135.24,135.15,5.50755734]
[1767885574186,7.39371534,135.25,135.18,5.50755734]
[1767885574390,7.39371534,135.25,135.22,5.50755734]
[1767885574911,8.10411708,135.25,135.22,5.50755734]
[1767885575313,0.71040174,135.24,135.22,5.50755734]
[1767885575616,0.71040174,135.24,135.23,5.50755734]
[1767885577102,0.71040174,135.25,135.23,5.50755734]
[1767885577595,0.71040174,135.25,135.19,7.53258004]
[1767885577791,0.71040174,135.25,135.22,5.50755734]
[1767885578831,0.71040174,135.24,135.21,5.50755734]
[1767885579034,0.71040174,135.25,135.23,5.50755734]
[1767885579894,0.71040174,135.25,135.17,0.73980912]
[1767885579895,8.10315463,135.27,135.24,5.50755734]
[1767885580116,8.10315463,135.27,135.25,5.50755734]
[1767885580309,8.10315463,135.27,135.19,23.99916988]
[1767885580310,0.81040174,135.29,135.26,5.50755734]
[1767885580523,0.81040174,135.29,135.19,0.13582134]
[1767885580524,0.71040174,135.28,135.19,0.13582134]
[1767885580725,25.9704876,135.29,135.21,5.50755734]
[1767885580726,6.21795908,135.26,135.21,5.50755734]
[1767885581033,7.39426205,135.24,135.21,5.50755734]
[1767885581232,0.71040174,135.27,135.24,0.13582134]
[1767885581528,0.1,135.29,135.26,6.17928136]
[1767885581701,0.1,135.29,135.26,0.67172402]
[1767885581900,0.1,135.29,135.28,5.50755734]
[1767885582309,7.38989062,135.32,135.28,5.50755734]
[1767885582620,7.38989062,135.32,135.3,5.50755734]
[1767885582833,5.50755734,135.34,135.3,5.50755734]
[1767885582834,7.38879858,135.34,135.3,5.50755734]
[1767885583034,31.36835237,135.34,135.3,5.50755734]
[1767885583233,31.36835237,135.34,135.27,7.39247423]
[1767885583234,5.50755734,135.32,135.27,5.50755734]
[1767885583400,0.71040174,135.32,135.26,0.67172402]
[1767885583601,0.71040174,135.31,135.27,5.50755734]
[1767885584222,0.71040174,135.31,135.26,0.67172402]
[1767885584532,0.71040174,135.31,135.27,5.50755734]
[1767885584704,6.21795908,135.31,135.27,5.50755734]
[1767885584900,6.21795908,135.31,135.26,0.67172402]
[1767885585102,7.390983,135.3,135.26,0.67172402]
[1767885585302,0.71040174,135.28,135.22,8.06694679]
[1767885585610,0.71040174,135.28,135.19,24.28389512]
[1767885585611,6.21795908,135.25,135.19,0.67172402]
[1767885585819,6.21795908,135.23,135.19,5.50755734]
[1767885586026,6.21795908,135.23,135.18,6.17928136]
[1767885586319,6.21795908,135.23,135.18,0.67172402]
[1767885586526,6.21795908,135.23,135.18,6.17928136]
[1767885586527,5.50755734,135.22,135.18,6.17928136]
[1767885586738,5.50755734,135.2,135.15,5.50755734]
[1767885586941,0.71040174,135.18,135.15,5.50755734]
[1767885587227,13.61480028,135.2,135.15,5.50755734]
[1767885587433,12.90439854,135.2,135.16,0.67172402]
[1767885587805,26.5983672,135.2,135.14,0.67172402]
[1767885588000,5.50755734,135.18,135.14,0.67172402]
[1767885588725,5.50755734,135.18,135.13,5.50755734]
[1767885589030,7.40028121,135.13,135.1,0.67172402]
[1767885589231,7.40028121,135.13,135.09,5.50755734]
[1767885589526,7.40028121,135.13,135.03,3.84699024]
[1767885589527,5.50755734,135.12,135.07,6.17928136]
[1767885589947,7.39988234,135.14,135.12,0.67172402]
[1767885590141,7.39051244,135.18,135.12,5.50755734]
[1767885590142,13.5,135.16,135.12,5.50755734]
[1767885590345,7.39051244,135.18,135.14,5.50755734]
[1767885590346,7.39809129,135.17,135.14,5.50755734]
[1767885590512,7.39809129,135.17,135.14,8.95680082]
[1767885590714,7.39746645,135.19,135.11,0.74013766]